bitfinex-derivatives/quotes_BNBF0:USTF0_20250305
["timestamp","ask_amount","ask_price","bid_price","bid_amount"]
[1741167932686,0.33203838,602.34,601.7,0.27531323]
[1741167933089,1.19795248,602.33,601.7,0.27531323]
[1741167933386,0.95427496,602.32,601.7,0.27531323]
[1741167933586,1.19795248,602.33,601.72,1.22818455]
[1741167933788,1.19795248,602.32,601.73,0.27531323]
[1741167934281,2.6146065,602.31,601.73,0.27531323]
[1741167934485,2.61460913,602.3,601.73,0.27531323]
[1741167934681,0.95446299,602.29,601.73,0.27531323]
[1741167934882,1.19795248,602.31,601.73,0.27531323]
[1741167934883,2.61473462,602.28,601.73,0.27531323]
[1741167935081,0.95446299,602.27,601.73,0.27531323]
[1741167935287,1.19795248,602.28,601.73,0.27531323]
[1741167935587,2.90402835,602.27,601.73,0.27531323]
[1741167935882,2.61496179,602.26,601.73,0.27531323]
[1741167936082,3.81291427,602.25,601.73,0.27531323]
[1741167936289,2.61504097,602.24,601.73,0.27531323]
[1741167936487,2.61507197,602.23,601.73,0.27531323]
[1741167936789,2.61512307,602.22,601.74,0.27531323]
[1741167936987,2.61512307,602.21,601.71,1.22818455]
[1741167937188,4.14318996,602.2,601.71,1.22818455]
[1741167937487,6.80038781,602.19,601.71,1.22818455]
[1741167937688,6.80038781,602.18,601.71,1.22818455]
[1741167937883,6.80038781,602.17,601.71,1.22818455]
[1741167938187,9.91742128,602.16,601.45,1.22818455]
[1741167938383,6.80044282,602.15,601.46,0.27556752]
[1741167938585,2.48274257,602.14,601.46,0.27556752]
[1741167938783,6.80080866,602.13,601.46,0.27556752]
[1741167938983,6.80081032,602.12,601.46,0.27556752]
[1741167939186,4.14353722,602.11,601.46,0.27556752]
[1741167939383,6.80081149,602.1,601.46,0.27556752]
[1741167939587,7.2991061,602.09,601.46,0.27556752]
[1741167939784,7.29910821,602.08,601.46,0.27556752]
[1741167939986,7.29910821,602.07,601.46,0.27556752]
[1741167940187,7.29910821,602.06,601.46,0.27556752]
[1741167940490,7.29914432,602.05,601.46,0.27556752]
[1741167940688,6.80081149,602.04,601.47,0.27556752]
[1741167940890,9.91778995,602.03,601.48,0.27556752]
[1741167941090,7.13302636,602.02,601.49,0.27556752]
[1741167941390,2.61547033,602.01,601.5,0.27556752]
[1741167941591,2.94769624,602.0,601.36,0.27556752]
[1741167941787,2.61547033,601.99,601.37,0.27556752]
[1741167941984,2.61547033,601.98,601.36,0.27556752]
[1741167942290,0.33222591,602.0,594.1,9.75347976]
[1741167942291,2.61547033,601.97,601.37,0.27556752]
[1741167942589,2.61606454,601.96,601.38,0.27556752]
[1741167942790,2.61606454,601.95,601.1,0.27556752]
[1741167942988,2.61606454,601.94,601.11,0.27556752]
[1741167943185,3.81435067,601.93,601.11,0.27556752]
[1741167943389,0.95526989,601.92,601.12,0.27556752]
[1741167943585,1.19795248,601.91,601.13,0.27556752]
[1741167943791,1.19795248,601.91,601.1,0.27556752]
[1741167944085,0.33222591,602.0,601.09,1.22818455]
[1741167944086,0.33222591,602.0,601.11,0.27556752]
[1741167944288,2.61614321,601.99,601.12,0.27556752]
[1741167944489,2.61614321,601.98,600.72,0.27556752]
[1741167944689,2.61614321,601.97,600.73,0.60849579]
[1741167944891,2.61614805,601.96,600.74,0.27556752]
[1741167945090,1.19894126,601.96,600.75,0.27573123]
[1741167945285,1.19894126,601.96,600.76,0.27573123]
[1741167945491,1.19894126,601.95,600.77,0.27573123]
[1741167945685,1.19894126,601.95,600.78,0.60863179]
[1741167945889,1.19894126,601.95,600.79,0.60862625]
[1741167946085,1.19894126,601.95,600.8,0.27573123]
[1741167946288,0.62151234,602.0,600.81,0.33288394]
[1741167946483,0.62151234,602.0,600.82,0.27573123]
[1741167946687,0.62151234,602.0,600.82,0.33287839]
[1741167946884,0.62151234,602.0,600.83,0.27579827]
[1741167947089,0.33222591,602.0,600.83,0.27579827]
[1741167948394,0.28926118,601.99,600.83,0.27579827]
[1741167950095,0.33222591,602.0,600.83,0.27579827]
[1741167950292,0.28928282,601.98,600.83,0.27579827]
[1741167951995,0.28928282,601.98,600.82,1.56106294]
[1741167952200,0.28928282,601.98,600.83,0.27589024]
[1741167953198,0.33222591,602.0,600.83,0.27589024]
[1741167954094,0.33222591,602.0,600.84,0.27589024]
[1741167954295,0.33222591,602.0,600.85,0.27589024]
[1741167954496,0.28924796,601.99,600.86,0.27589024]
[1741167954695,0.28924796,601.99,600.87,0.27589024]
[1741167955100,0.28924796,601.99,600.88,0.27589024]
[1741167955295,0.28924796,601.99,600.83,0.27589024]
[1741167955502,0.28924796,601.99,600.84,0.27589024]
[1741167955696,0.28924796,601.99,600.82,0.33287839]
[1741167955896,0.28924796,601.99,600.9,1.22818455]
[1741167956201,0.33222591,602.0,600.9,1.22818455]
[1741167956900,0.33222591,602.0,600.91,0.27574821]
[1741167958298,0.33222591,602.0,600.92,1.22818455]
[1741167958498,0.33222591,602.0,600.93,0.27574821]
[1741167960007,0.33222591,602.0,600.92,0.27574821]
[1741167960207,0.33222591,602.0,600.93,0.27574821]
[1741167960408,0.33222591,602.0,600.92,0.27574821]
[1741167960608,0.33222591,602.0,600.93,0.27574821]
[1741167961010,0.33222591,602.0,600.94,0.27574821]
[1741167961205,0.33222591,602.0,600.92,0.27574821]
[1741167961403,0.33222591,602.0,600.91,1.22818455]
[1741167961404,0.33222591,602.0,600.93,0.27574821]
[1741167961607,0.33222591,602.0,600.91,1.22818455]
[1741167961911,0.33222591,602.0,600.92,0.27571374]
[1741167962309,0.33222591,602.0,600.93,0.27578342]
[1741167962612,0.33222591,602.0,600.94,0.27578342]
[1741167962910,0.33222591,602.0,600.95,0.27578342]
[1741167963112,0.33222591,602.0,600.96,0.27578342]
[1741167963311,0.33222591,602.0,600.97,0.27578342]
[1741167963512,0.33222591,602.0,600.89,0.27578342]
[1741167963712,0.33222591,602.0,600.9,0.27578342]
[1741167963913,0.33222591,602.0,600.89,0.27578342]
[1741167964107,0.33222591,602.0,600.9,0.27578342]
[1741167964312,0.33222591,602.0,600.91,0.27578342]
[1741167964514,0.33222591,602.0,600.92,0.27578342]
[1741167964712,0.33222591,602.0,600.89,0.27578342]
[1741167964913,0.33222591,602.0,600.9,0.27578342]
[1741167965112,0.33222591,602.0,600.91,0.27578342]
[1741167965414,0.33222591,602.0,600.92,0.27578342]
[1741167965714,0.33222591,602.0,601.0,1.22818455]
[1741167966016,0.33222591,602.0,601.01,0.27578342]
[1741167968117,0.33222591,602.0,600.94,0.27578342]
[1741167968317,0.33222591,602.0,600.95,0.27578342]
[1741167968515,0.33222591,602.0,600.92,0.27578342]
[1741167968718,0.33222591,602.0,600.96,0.27578342]
[1741167969020,0.33222591,602.0,600.97,0.27578342]
[1741167969212,0.33222591,602.0,600.92,0.27578342]
[1741167969418,0.33222591,602.0,600.95,0.28918546]
[1741167969615,0.33222591,602.0,600.96,0.27578342]
[1741167969814,0.33222591,602.0,600.95,0.28918546]
[1741167970010,0.33222591,602.0,600.96,0.27575495]
[1741167970517,0.33222591,602.0,600.95,0.28918546]
[1741167970717,0.33222591,602.0,601.28,1.22818455]
[1741167970918,0.33222591,602.0,601.29,0.27580154]
[1741167971310,0.33222591,602.0,601.3,0.2758848]
[1741167971511,0.33222591,602.0,601.31,0.2758848]
[1741167971714,0.33222591,602.0,601.28,1.22818455]
[1741167971715,0.33222591,602.0,601.32,0.2758848]
[1741167971911,0.33222591,602.0,601.29,0.2758848]
[1741167972111,0.33222591,602.0,601.3,0.2758848]
[1741167972512,0.33222591,602.0,601.31,0.2758848]
[1741167972713,0.33222591,602.0,601.32,0.2758848]
[1741167972916,0.33222591,602.0,601.29,0.2758848]
[1741167973113,0.33222591,602.0,601.3,0.2758848]
[1741167973318,0.33222591,602.0,601.17,0.2758848]
[1741167973519,0.33222591,602.0,601.18,0.2758848]
[1741167973713,0.33222591,602.0,601.19,0.2758848]
[1741167973913,0.33222591,602.0,601.17,0.2758848]
[1741167974213,0.33222591,602.0,601.18,0.2758848]
[1741167974412,0.33222591,602.0,601.19,0.2758848]
[1741167974616,0.33222591,602.0,601.2,0.2758848]
[1741167974814,0.33222591,602.0,601.48,1.22818455]
[1741167975116,0.33222591,602.0,601.49,0.2758848]
[1741167975718,0.33222591,602.0,601.48,1.22818455]
[1741167975914,0.33222591,602.0,601.49,0.27587575]
[1741167976422,0.33222591,602.0,601.53,1.22818455]
[1741167976622,0.33222591,602.0,601.54,0.27587575]
[1741167977016,0.49823467,602.38,601.54,0.27587575]
[1741167977920,0.28904135,602.37,601.54,0.27587575]
[1741167978922,0.28904135,602.37,601.33,0.27587575]
[1741167979128,0.28904135,602.37,601.34,0.27587575]
[1741167979330,0.28904135,602.37,601.33,0.27587575]
[1741167979724,0.33202735,602.36,601.33,0.27587575]
[1741167980324,0.28909897,602.35,601.33,0.27587575]
[1741167980931,0.62113184,602.35,601.33,0.27587575]
[1741167981229,0.62113184,602.35,601.34,0.27587575]
[1741167981425,0.62113184,602.35,601.35,0.27587575]
[1741167981629,0.62113184,602.35,601.36,0.27587575]
[1741167981832,0.62113184,602.35,601.3,0.27587575]
[1741167982025,0.62113184,602.35,601.31,0.27587575]
[1741167982225,0.62113184,602.35,601.3,0.27587575]
[1741167982430,0.33203287,602.35,601.3,0.27587575]
[1741167983430,0.33203287,602.35,601.29,0.28907256]
[1741167983630,1.19681596,602.34,601.3,0.27587575]
[1741167984430,1.19681596,602.33,601.3,0.27587575]
[1741167985535,1.19681596,602.32,601.3,0.27587575]
[1741167986030,1.19681596,602.32,601.31,0.27587575]
[1741167986328,0.33203287,602.35,601.32,0.27570509]
[1741167986529,0.33203287,602.35,601.33,0.27570509]
[1741167986730,0.33203287,602.35,601.34,0.27570509]
[1741167987032,0.33203287,602.35,601.35,0.27570509]
[1741167987228,0.33203287,602.35,601.3,0.27570509]
[1741167987427,0.33203287,602.35,601.31,0.27570509]
[1741167987632,0.33203287,602.35,601.29,0.28907256]
[1741167987633,0.33203287,602.35,601.32,0.27570509]
[1741167987833,0.33203287,602.35,601.33,0.27570509]
[1741167988033,0.33203287,602.35,601.34,0.27570509]
[1741167988228,0.33203287,602.35,601.3,0.27570509]
[1741167988433,0.33203287,602.35,601.31,0.27570509]
[1741167988630,0.33203287,602.35,601.32,0.27570509]
[1741167988835,0.33203287,602.35,601.29,0.28907256]
[1741167988836,0.95274945,602.34,601.3,0.27570509]
[1741167989038,1.19620426,602.34,601.31,0.27570509]
[1741167989237,1.19620426,602.34,601.19,0.27570509]
[1741167989433,1.19620426,602.34,600.86,2.5189937]
[1741167989434,0.95269656,602.33,601.29,0.28910018]
[1741167989639,1.19620426,602.32,601.3,0.27570509]
[1741167989837,2.61290028,602.31,601.31,0.27570509]
[1741167990038,0.95273676,602.3,601.32,0.27570509]
[1741167990239,1.19620426,602.3,601.33,0.27570509]
[1741167990437,1.19620426,602.3,601.34,0.27570509]
[1741167990637,1.19620426,602.3,601.35,0.27570509]
[1741167990839,0.33203287,602.35,601.36,0.27570509]
[1741167991138,0.33203287,602.35,601.37,0.27570509]
[1741167991340,0.33203287,602.35,601.38,0.27570509]
[1741167991539,0.33203287,602.35,601.39,0.27594917]
[1741167991737,0.33203287,602.35,601.4,0.27594917]
[1741167992040,0.33203287,602.35,601.41,0.27594917]
[1741167992242,0.33203287,602.35,601.42,0.27594917]
[1741167992434,0.28910258,602.34,601.43,0.27594917]
[1741167992741,0.28910258,602.34,601.44,0.27594917]
[1741167992935,0.28910258,602.34,601.45,0.27594917]
[1741167993133,0.62114096,602.34,601.35,0.27594917]
[1741167993340,0.33204389,602.33,601.36,0.27594917]
[1741167993537,0.33204389,602.33,601.37,0.27594917]
[1741167993734,0.33204389,602.33,601.35,0.27594917]
[1741167993937,2.61366178,602.32,601.36,0.27594917]
[1741167994134,0.33205492,602.31,601.36,0.27594917]
[1741167994338,0.33205492,602.31,601.37,0.27594917]
[1741167994542,0.33205492,602.31,601.38,0.27594917]
[1741167994742,0.33205492,602.31,601.39,0.27594917]
[1741167994934,0.33205492,602.31,601.34,0.28910258]
[1741167995139,3.81061828,602.3,601.35,0.27614017]
[1741167995339,2.61384113,602.29,601.25,0.27614017]
[1741167995539,4.14268974,602.28,601.35,1.22818455]
[1741167995739,2.9459181,602.27,601.36,0.27614017]
[1741167995936,2.94599433,602.26,601.36,0.27614017]
[1741167996139,0.332088,602.25,601.36,0.27614017]
[1741167996339,1.52886515,602.25,601.36,0.27614017]
[1741167997039,1.19677715,602.24,601.36,0.27614017]
[1741167997644,0.332088,602.25,601.36,0.27614017]
[1741167998040,0.332088,602.25,601.24,0.27614017]
[1741167998344,1.24242342,602.24,601.27,0.28913861]
[1741167998538,0.28913861,602.24,601.28,0.27614017]
[1741167999339,0.95331057,602.23,601.28,0.27614017]
[1741167999544,0.28913861,602.24,601.28,0.27614017]
[1741167999745,1.19687924,602.22,601.28,0.27614017]
[1741168000444,0.28913861,602.24,601.28,0.27614017]
[1741168004249,0.332088,602.25,601.28,0.27614017]
[1741168004447,0.332088,602.25,601.22,0.27614017]
[1741168004650,0.332088,602.25,601.23,0.27614017]
[1741168004850,0.332088,602.25,601.24,0.27614017]
[1741168005051,0.332088,602.25,601.22,0.27614017]
[1741168005351,0.332088,602.25,601.23,0.56525115]
[1741168005651,0.332088,602.25,601.24,0.27614017]
[1741168007151,0.332088,602.25,601.23,0.28911098]
[1741168007353,0.332088,602.25,601.24,0.27584496]
[1741168008957,0.332088,602.25,601.25,0.33264033]
[1741168009154,0.332088,602.25,601.26,0.27584496]
[1741168009558,0.332088,602.25,601.26,0.60847976]
[1741168009757,0.332088,602.25,601.27,0.27584496]
[1741168009956,0.332088,602.25,601.49,1.22818455]
[1741168010156,0.332088,602.25,601.5,0.27584496]
[1741168010656,0.332088,602.25,601.49,1.22818455]
[1741168010856,0.332088,602.25,601.5,0.27559377]
[1741168011259,0.332088,602.25,601.72,1.22818455]
[1741168011457,0.332088,602.25,601.73,0.27559377]
[1741168011756,0.49823467,602.38,601.73,0.27559377]
[1741168012357,0.49823467,602.38,601.72,1.22818455]
[1741168012557,0.49823467,602.38,601.73,0.27548996]
[1741168013352,0.49823467,602.38,601.64,0.27548996]
[1741168013555,0.49823467,602.38,601.65,0.27548996]
[1741168013753,0.49823467,602.38,601.66,0.27548996]
[1741168013958,0.49823467,602.38,601.64,0.27548996]
[1741168014158,0.49823467,602.38,601.65,0.27545698]
[1741168014365,0.49823467,602.38,601.66,0.27545698]
[1741168014558,0.49823467,602.38,601.67,0.27545698]
[1741168014761,0.49823467,602.38,601.64,0.27545698]
[1741168014960,0.49823467,602.38,601.65,0.27545698]
[1741168015160,0.49823467,602.38,601.63,1.22818455]
[1741168015161,0.49823467,602.38,601.66,0.27545698]
[1741168015360,0.49823467,602.38,601.64,0.27545698]
[1741168015555,0.49823467,602.38,601.65,0.27545698]
[1741168015760,0.49823467,602.38,601.54,1.22818455]
[1741168015761,0.49823467,602.38,601.55,0.27545698]
[1741168015958,0.49823467,602.38,601.56,0.27545698]
[1741168016155,0.49823467,602.38,601.57,0.27545698]
[1741168016360,0.49823467,602.38,601.55,0.27545698]
[1741168016560,0.49823467,602.38,601.56,0.27545698]
[1741168017060,0.49823467,602.38,601.66,1.22818455]
[1741168017961,0.49823467,602.38,601.67,0.27545698]
[1741168019455,0.49823467,602.38,601.7,1.22818455]
[1741168019862,0.49823467,602.38,601.71,0.27545698]
[1741168021963,0.49823467,602.38,601.72,0.27574419]
[1741168022156,0.49823467,602.38,601.73,0.27574419]
[1741168022355,0.49823467,602.38,601.74,0.27574419]
[1741168022556,1.19641628,602.37,601.75,0.27574419]
[1741168022758,1.19641628,602.37,601.41,0.27574419]
[1741168022958,1.19641628,602.37,601.42,0.27574419]
[1741168023156,1.19641628,602.37,601.43,0.27574419]
[1741168023361,0.49823467,602.38,601.43,0.27574419]
[1741168023562,0.49823467,602.38,601.44,0.27574419]
[1741168023762,0.49823467,602.38,601.45,0.2757135]
[1741168023962,0.49823467,602.38,601.41,0.2757135]
[1741168024159,0.49823467,602.38,601.42,0.2757135]
[1741168024363,0.49823467,602.38,601.4,0.28897654]
[1741168024364,1.19676876,602.37,601.41,0.2757135]
[1741168024563,1.19676876,602.37,601.42,0.2757135]
[1741168024763,1.19676876,602.37,601.41,0.2757135]
[1741168025063,1.19676876,602.37,601.42,0.2757135]
[1741168025264,0.49823467,602.38,601.43,0.2757135]
[1741168025265,1.19676876,602.36,601.43,0.2757135]
[1741168025460,1.19676876,602.36,601.4,0.28908216]
[1741168025660,0.95385954,602.35,601.41,0.2757135]
[1741168025866,2.61403222,602.34,601.41,0.2757135]
[1741168026067,7.1295228,602.33,601.41,0.2757135]
[1741168026366,6.79747891,602.32,601.41,0.2757135]
[1741168026566,6.79836438,602.31,601.41,0.2757135]
[1741168026866,6.79836438,602.3,601.41,0.2757135]
[1741168027067,6.79836438,602.29,601.41,0.2757135]
[1741168027361,6.79836438,602.29,600.89,1.47554404]
[1741168027362,6.79836438,602.28,601.42,0.27589885]
[1741168027565,6.79836438,602.27,601.42,0.27589885]
[1741168027767,6.79836438,602.26,601.43,0.27589885]
[1741168028065,6.79836438,602.25,601.44,0.27589885]
[1741168028264,6.79836438,602.24,600.97,0.27589885]
[1741168028460,6.79942045,602.23,601.2,0.28920589]
[1741168028660,6.7993865,602.22,601.21,0.27589885]
[1741168028861,4.14214874,602.21,601.22,0.27589885]
[1741168029063,2.61516171,602.2,600.97,0.27589885]
[1741168029265,2.61516171,602.19,600.98,0.27589885]
[1741168029566,6.06065063,602.18,600.99,0.27589885]
[1741168029766,2.94729383,602.17,600.99,0.27589885]
[1741168029958,2.94729934,602.16,600.99,0.27589885]
[1741168030158,2.94730486,602.15,600.99,0.27589885]
[1741168030360,2.94731037,602.14,600.99,0.27589885]
[1741168030562,2.94731589,602.13,600.99,0.27589885]
[1741168030766,0.33215418,602.13,601.0,0.27592706]
[1741168031066,3.81177909,602.12,601.01,0.27592706]
[1741168031265,1.19676876,602.12,601.02,0.27592706]
[1741168031467,1.19676876,602.12,601.03,0.27592706]
[1741168031664,1.19676876,602.11,601.03,0.27592706]
[1741168031861,1.19676876,602.11,601.04,0.27592706]
[1741168032061,1.19676876,602.11,601.05,0.27592706]
[1741168032267,1.19676876,602.11,600.99,0.27592706]
[1741168032566,1.19676876,602.11,600.98,0.2892155]
[1741168032567,1.19676876,602.11,601.0,0.27592706]
[1741168032867,1.19676876,602.11,601.01,0.27592706]
[1741168033067,1.19676876,602.11,600.99,0.27592706]
[1741168033259,1.19676876,602.11,600.98,0.2892155]
[1741168033260,1.19676876,602.11,601.09,1.22818455]
[1741168033461,1.19676876,602.11,601.1,0.27592706]
[1741168034066,1.19676876,602.1,601.1,0.27592706]
[1741168034268,1.19676876,602.1,601.11,0.27593478]
[1741168034465,1.19676876,602.1,601.1,0.27593478]
[1741168034672,0.62134805,602.13,601.11,0.27593478]
[1741168034970,0.62134805,602.13,601.12,0.27593478]
[1741168035165,0.62134805,602.13,601.1,0.27593478]
[1741168035468,0.62134805,602.13,601.11,0.27593478]
[1741168035666,0.62134805,602.13,601.1,0.27593478]
[1741168035868,0.33215418,602.13,601.11,0.27593478]
[1741168036168,0.33215418,602.13,601.12,0.27593478]
[1741168036367,0.33215418,602.13,601.13,0.27593478]
[1741168036669,0.33215418,602.13,601.14,0.27593478]
[1741168036869,0.33215418,602.13,601.1,0.27593478]
[1741168037064,0.33215418,602.13,601.11,0.27593478]
[1741168037262,0.33215418,602.13,601.12,0.27593478]
[1741168037468,0.33215418,602.13,601.13,0.27593478]
[1741168037771,0.33215418,602.13,601.14,0.27568656]
[1741168037966,0.33215418,602.13,601.21,1.22818455]
[1741168038166,0.33215418,602.13,601.22,0.27568656]
[1741168040668,0.28916624,602.12,601.23,0.27568656]
[1741168040974,0.28916624,602.12,601.24,0.27568656]
[1741168041171,0.28916624,602.12,601.25,0.27582736]
[1741168041372,0.28916624,602.12,601.13,0.27582736]
[1741168043072,0.33215418,602.13,601.13,0.27582736]
[1741168043375,0.28922151,602.11,601.14,0.27582736]
[1741168043567,0.28922151,602.11,601.15,0.27582736]
[1741168043771,0.28922151,602.11,601.12,0.28922151]
[1741168043772,0.28922151,602.11,601.16,0.27582736]
[1741168044075,0.28922151,602.11,601.17,0.27582736]
[1741168044273,0.28922151,602.11,601.18,0.27582736]
[1741168044473,0.28922151,602.11,601.19,0.27582736]
[1741168044774,0.28922151,602.11,601.2,0.27582736]
[1741168044975,0.28922151,602.11,601.13,0.27582736]
[1741168045174,0.28922151,602.11,601.21,0.27582736]
[1741168045378,0.28922151,602.11,601.22,0.27582736]
[1741168045572,0.28922151,602.11,601.23,0.27582736]
[1741168045877,0.33215418,602.13,601.24,0.27582736]
[1741168046077,0.33215418,602.13,601.13,0.27582736]
[1741168046279,0.33215418,602.13,601.14,0.27582736]
[1741168046476,0.33215418,602.13,601.15,0.2756932]
[1741168046669,0.33215418,602.13,601.16,0.2756932]
[1741168046877,0.33215418,602.13,601.31,1.22818455]
[1741168047078,0.33215418,602.13,601.32,0.2756932]
[1741168049276,0.33215418,602.13,601.37,1.22818455]
[1741168049477,0.33215418,602.13,601.38,0.2756932]
[1741168049978,0.33215418,602.13,601.39,0.27548616]
[1741168050176,0.33215418,602.13,601.38,0.27548616]
[1741168050379,0.33215418,602.13,601.39,0.27548616]
[1741168050682,0.33215418,602.13,601.4,0.27548616]
[1741168050877,0.28908216,602.37,601.41,0.27548616]
[1741168051077,0.28908216,602.37,601.42,0.27548616]
[1741168051286,1.91541922,602.57,601.42,0.27548616]
[1741168051585,1.19676646,602.56,601.43,0.27548616]
[1741168051781,1.19676646,602.56,601.38,0.27548616]
[1741168051977,0.28902334,602.47,601.45,1.22818455]
[1741168052181,0.28902334,602.47,601.46,0.27548616]
[1741168052476,0.28902334,602.47,601.47,0.27548616]
[1741168052678,6.79397521,602.86,601.48,0.27548616]
[1741168052984,6.79397521,602.85,601.49,0.27548616]
[1741168053185,6.79397521,602.84,601.5,0.27548616]
[1741168053385,6.79397521,602.83,601.51,0.27548616]
[1741168053583,0.28895855,602.56,601.65,1.22818455]
[1741168053780,0.28895855,602.56,601.66,0.27548616]
[1741168055189,0.28895855,602.56,601.65,1.22818455]
[1741168055388,0.95319861,602.75,601.66,0.27525626]
[1741168055582,2.61306739,602.75,601.66,0.27525626]
[1741168055787,2.61306739,602.75,601.66,1.50344081]
[1741168055987,2.85650658,602.74,601.67,0.27525626]
[1741168056187,0.95319861,602.73,601.67,0.27525626]
[1741168056381,2.61293873,602.72,601.67,0.27525626]
[1741168056582,0.28897534,602.44,601.67,0.27525626]
[1741168058187,0.95319861,602.64,601.43,0.27525626]
[1741168058386,3.60935867,602.63,601.44,0.27525626]
[1741168058589,4.67888677,602.62,601.28,0.27525626]
[1741168058790,1.19643738,602.37,601.29,0.27525626]
[1741168058987,1.19643738,602.37,601.3,0.27525626]
[1741168059188,1.19643738,602.36,601.28,0.27525626]
[1741168059385,1.48552555,602.36,601.31,0.28908817]
[1741168059582,1.48552555,602.36,601.32,0.27525626]
[1741168059784,0.28908817,602.36,601.32,0.27525626]
[1741168061185,4.18083809,602.5,601.32,0.27525626]
[1741168061386,1.19642346,602.37,601.32,0.27525626]
[1741168061788,1.19642346,602.36,601.32,0.27525626]
[1741168061984,1.66013044,602.35,601.33,0.27525626]
[1741168062189,3.80955839,602.34,601.33,0.27525626]
[1741168062390,4.13804313,602.33,601.34,0.27525626]
[1741168062687,3.80955839,602.32,601.35,0.27525626]
[1741168062989,2.61313493,602.31,601.36,0.27525626]
[1741168063184,2.61313493,602.3,601.37,0.27525626]
[1741168063490,2.61313493,602.29,601.38,0.27525626]
[1741168063685,2.61313493,602.28,601.39,0.27525626]
[1741168063886,2.61324192,602.27,601.31,1.51730874]
[1741168064085,1.28519396,602.26,601.32,0.27564141]
[1741168064289,0.33208248,602.26,601.32,0.27564141]
[1741168064984,0.33208248,602.26,601.27,0.27564141]
[1741168065590,0.33208248,602.26,601.28,0.28908817]
[1741168065791,0.33208248,602.26,601.29,0.27564141]
[1741168067493,0.33208248,602.26,601.3,0.27564141]
[1741168067796,0.33208248,602.26,601.31,0.27564141]
[1741168068090,0.33208248,602.26,601.32,0.27564141]
[1741168068290,0.33208248,602.26,600.99,1.22818455]
[1741168068488,0.33208248,602.26,601.29,0.28916744]
[1741168068693,0.33208248,602.26,601.3,0.27564141]
[1741168068889,0.33208248,602.26,601.02,0.27564141]
[1741168069090,0.33208248,602.26,601.03,0.6084035]
[1741168069295,0.33208248,602.26,601.04,0.60839796]
[1741168069491,0.33208248,602.26,601.05,0.60839242]
[1741168069694,0.33208248,602.26,601.06,0.60838689]
[1741168069893,0.33208248,602.26,601.07,0.60838135]
[1741168070197,0.33208248,602.26,601.49,1.22818455]
[1741168070596,0.33208248,602.26,601.5,0.27564141]
[1741168071793,0.33208248,602.26,601.51,0.27564141]
[1741168072095,0.33208248,602.26,601.52,0.27564141]
[1741168072398,0.33208248,602.26,601.53,0.27564141]
[1741168072599,0.33208248,602.26,601.48,0.27564141]
[1741168072898,0.33208248,602.26,601.49,0.27564141]
[1741168073098,0.33208248,602.26,601.5,0.2755216]
[1741168073294,0.33208248,602.26,601.48,0.2755216]
[1741168073490,0.33208248,602.26,601.49,0.2755216]
[1741168073699,0.33208248,602.26,601.63,1.22818455]
[1741168073999,0.33208248,602.26,601.64,0.2755216]
[1741168074601,0.33208248,602.26,601.65,0.27546598]
[1741168074790,0.33208248,602.26,601.64,0.27546598]
[1741168075595,0.33208248,602.26,601.5,0.27546598]
[1741168075800,0.33208248,602.26,601.51,0.27546598]
[1741168076000,0.33208248,602.26,601.5,0.27546598]
[1741168076196,0.33208248,602.26,601.52,0.27546598]
[1741168076402,0.33208248,602.26,601.53,0.27546598]
[1741168076599,0.33208248,602.26,601.5,0.27546598]
[1741168077702,0.95365557,602.59,601.5,0.27546598]
[1741168077901,0.28901734,602.54,601.51,0.27526499]
[1741168078301,0.28901734,602.54,601.52,0.27526499]
[1741168078601,0.28901734,602.54,601.53,0.27526499]
[1741168078800,0.28901734,602.54,601.41,0.27526499]
[1741168079003,0.28901734,602.54,601.42,0.27526499]
[1741168079300,4.67972953,602.87,601.43,0.27526499]
[1741168079501,7.29359423,602.86,601.44,0.27526499]
[1741168079695,7.29356364,602.85,601.41,0.27526499]
[1741168079898,10.40786181,602.84,601.54,1.22818455]
[1741168080202,8.28226175,602.83,601.55,0.27533238]
[1741168080501,0.28898494,602.41,601.55,0.27533238]
[1741168081700,0.28898494,602.41,601.54,1.22818455]
[1741168082002,0.28898494,602.41,601.55,0.27541539]
[1741168082297,0.95427281,602.37,601.52,0.27541539]
[1741168082501,1.53015844,602.36,601.53,0.27541539]
[1741168082700,0.33203287,602.35,601.52,0.27541539]
[1741168082902,0.33203287,602.35,601.53,0.27541539]
[1741168083101,0.33203287,602.35,601.52,0.27541539]
[1741168083302,0.33203287,602.35,601.53,0.27541539]
[1741168083500,0.33203287,602.35,601.52,0.27541539]
[1741168083695,0.33203287,602.35,601.53,0.27541539]
[1741168084003,0.33203287,602.35,601.68,1.22818455]
[1741168084498,0.33203287,602.35,601.69,0.27541539]
[1741168084700,0.33203287,602.35,601.7,0.27541539]
[1741168084902,0.33203287,602.35,601.68,1.22818455]
[1741168084903,0.33203287,602.35,601.71,0.27541539]
[1741168085204,0.33203287,602.35,601.72,0.27541539]
[1741168085397,0.33203287,602.35,601.73,0.27541539]
[1741168085597,0.33203287,602.35,601.85,1.22818455]
[1741168085802,0.33203287,602.35,601.86,0.27541539]
[1741168086497,3.15338197,602.67,601.86,0.27541539]
[1741168086804,0.28895495,602.61,601.86,0.27541539]
[1741168087301,1.19733072,602.6,601.86,0.27541539]
[1741168087703,1.19733072,602.6,601.63,0.27541539]
[1741168087900,0.28895495,602.61,601.87,0.27541539]